bitfinex/quotes_SOLUSD_20240829
["timestamp","ask_amount","ask_price","bid_price","bid_amount"]
[1724974573123,8.92399435,140.08,140.02,17.8545]
[1724974573327,1.78505454,140.07,140.03,7.141]
[1724974573951,7.1391,140.08,140.04,7.1407]
[1724974574242,22.67017932,140.09,140.04,7.1407]
[1724974577934,8.92335451,140.09,140.05,7.1401]
[1724974578954,8.92335451,140.09,140.04,7.1407]
[1724974582030,7.1389,140.08,140.03,7.1412]
[1724974589549,7.1389,140.08,140.04,7.1405]
[1724974597034,22.67017932,140.09,140.04,7.1405]
[1724974597254,8.92335451,140.09,140.04,7.1405]
[1724974599764,7.1389,140.08,140.04,7.1405]
[1724974599971,13.74682481,140.05,139.99,17.8576]
[1724974600142,22.2802,140.06,139.96,15.6617]
[1724974600143,7.142,140.02,139.97,7.1443]
[1724974600340,8.92768662,140.02,139.97,7.1443]
[1724974600859,1.78568897,140.01,139.98,7.1438]
[1724974601167,1.78568897,140.01,139.96,17.862]
[1724974601168,15.53251378,140.01,139.96,17.862]
[1724974601843,7.1423,140.02,139.96,17.862]
[1724974602390,7.1423,140.02,139.97,7.1439]
[1724974605167,20.88912481,140.02,139.97,7.1439]
[1724974605369,1.78571617,140.01,139.97,7.1439]
[1724974605742,8.92821617,140.01,139.96,17.862]
[1724974607264,1.78571617,140.01,139.96,17.862]
[1724974607446,13.74682481,140.03,139.96,17.862]
[1724974607765,1.78573517,140.02,139.96,17.862]
[1724974608348,1.78573517,140.02,139.98,7.1437]
[1724974609669,29.71062481,140.01,139.96,17.862]
[1724974609849,8.9289322,140.0,139.96,17.862]
[1724974610051,8.9289322,140.0,139.96,25.0068]
[1724974612747,1.7860322,140.0,139.95,7.1453]
[1724974613250,8.9289322,140.0,139.96,7.1448]
[1724974618973,1.7860322,140.0,139.96,7.1448]
[1724974623649,13.74682481,139.99,139.95,7.1453]
[1724974623849,1.78616839,139.98,139.95,7.1453]
[1724974627281,13.74682481,139.97,139.94,25.0094]
[1724974627574,1.78635293,139.96,139.94,25.0094]
[1724974627778,22.4799,140.01,139.94,25.0094]
[1724974627779,1.78635252,140.0,139.95,7.1449]
[1724974628081,20.0,140.0,139.96,7.1444]
[1724974628255,24.26605699,140.01,139.97,7.1442]
[1724974635151,1.78582101,140.04,139.98,18.65426279]
[1724974635358,21.78582101,140.04,139.98,18.65426279]
[1724974635754,21.78582101,140.04,140.0,7.1424]
[1724974640083,7.1414,140.03,139.98,25.0024]
[1724974640288,15.53260623,140.02,139.98,25.0024]
[1724974640454,1.7857384,140.01,139.98,25.0024]
[1724974642178,8.9281384,140.01,139.96,7.1444]
[1724974642384,13.74682481,140.0,139.96,7.1444]
[1724974642581,15.53277654,140.0,139.96,7.1444]
[1724974646477,31.16627654,140.0,139.96,7.1444]
[1724974646785,31.16627654,140.0,139.95,17.8628]
[1724974646786,13.74682481,139.98,139.95,17.8628]
[1724974646977,1.78623347,139.97,139.95,17.8628]
[1724974649165,8.93073347,139.97,139.93,7.1463]
[1724974649368,8.93073347,139.97,139.92,25.0137]
[1724974649369,13.74682481,139.96,139.92,25.0137]
[1724974649692,1.78643503,139.95,139.92,25.0137]
[1724974650390,13.74682481,139.98,139.93,7.1463]
[1724974650564,1.78628765,139.97,139.93,7.1463]
[1724974651587,1.78628765,139.97,139.89,20.23000168]
[1724974651588,1.78628862,139.99,139.95,7.1449]
[1724974651762,1.78621508,139.98,139.95,7.1449]
[1724974652573,1.78601813,139.99,139.96,8.5736145]
[1724974652778,1.78604317,139.99,139.96,8.5736145]
[1724974653090,1.78604317,139.99,139.96,7.1448]
[1724974653989,35.56662481,140.0,139.97,7.1442]
[1724974654286,37.35261069,140.0,139.95,1.42883394]
[1724974654989,37.35261069,140.0,139.96,7.1448]
[1724974657898,37.35261069,140.0,139.96,8.57363268]
[1724974658090,35.56662481,140.0,139.96,7.1448]
[1724974662902,44.49553069,140.0,139.95,7.1452]
[1724974663094,20.89092481,139.98,139.94,17.8637]
[1724974663282,1.78634021,139.97,139.94,17.8637]
[1724974663685,1.78634021,139.97,139.93,7.1462]
[1724974663686,8.93074021,139.97,139.93,7.1462]
[1724974665412,8.93074021,139.97,139.92,7.1468]
[1724974668417,8.93074021,139.97,139.93,7.1464]
[1724974669711,20.89172481,139.96,139.92,7.1468]
[1724974669900,1.78655335,139.95,139.92,7.1468]
[1724974674015,1.78652331,139.96,139.93,7.1462]
[1724974678107,8.92981845,139.99,139.95,7.1453]
[1724974678323,8.92981845,139.99,139.93,17.865]
[1724974678324,1.78617995,139.99,139.96,7.1448]
[1724974678609,28.9627,140.0,139.96,7.1448]
[1724974678610,35.56662481,140.0,139.96,7.1448]
[1724974679315,35.56662481,140.0,139.96,8.57352383]
[1724974679494,35.56662481,140.0,139.96,7.1448]
[1724974679808,1.78593581,139.99,139.96,7.1448]
[1724974681104,1.78593581,139.99,139.95,25.0082]
[1724974682307,42.70962481,140.0,139.95,25.0082]
[1724974682487,42.70962481,140.0,139.96,7.1448]
[1724974682692,35.56662481,140.0,139.96,7.1448]
[1724974682992,1.7859315,139.99,139.96,7.1448]
[1724974685026,8.9296315,139.99,139.95,17.863]
[1724974685218,13.74682481,139.98,139.95,17.863]
[1724974685501,1.78627597,139.97,139.95,17.863]
[1724974685709,15.53309718,139.98,139.95,17.863]
[1724974687725,1.78610681,139.99,139.95,25.0081]
[1724974687909,42.70962481,140.0,139.96,7.1448]
[1724974688213,7.1424,140.01,139.97,7.1443]
[1724974688415,20.0,140.0,139.97,7.1443]
[1724974689116,20.0,140.0,139.98,7.1438]
[1724974689308,8.92805242,140.02,139.98,7.1438]
[1724974689619,1.78585242,140.02,139.98,8.5722778]
[1724974690009,21.78585242,140.02,139.98,8.5722778]
[1724974691719,1.78570887,140.04,140.01,7.1423]
[1724974692599,1.7853899,140.05,140.01,7.1423]
[1724974692813,8.9256899,140.05,140.01,7.1423]
[1724974693121,1.78539297,140.04,140.01,7.1423]
[1724974693317,21.78539297,140.04,140.01,7.1423]
[1724974693515,1.78539297,140.04,140.01,7.1423]
[1724974693818,21.78539297,140.04,140.01,7.1423]
[1724974696125,42.67311778,140.04,139.99,17.8574]
[1724974696328,1.78555603,140.03,139.99,17.8574]
[1724974697326,1.78555603,140.03,140.0,7.1426]
[1724974697822,1.78555603,140.03,139.99,25.0006]
[1724974698024,20.88872481,140.02,139.99,17.8574]
[1724974698231,1.78580793,140.01,139.99,17.8574]
[1724974700406,13.74682481,140.0,139.96,25.0059]
[1724974700703,1.78600548,139.99,139.96,25.0059]
[1724974703630,1.78607745,140.0,139.96,25.0059]
[1724974704730,1.78607745,140.0,139.97,7.1441]
[1724974705428,1.78607745,140.0,139.96,25.0063]
[1724974721126,1.78607745,140.0,139.96,17.8615]
[1724974721431,1.78591175,140.02,139.98,17.8592]
[1724974721640,1.78569174,140.03,140.0,7.1427]
[1724974721826,1.78547781,140.05,140.02,7.1417]
[1724974722031,16.1203,140.06,140.02,7.1417]
[1724974722337,1.78517128,140.08,140.05,7.1402]
[1724974724234,1.78494113,140.07,140.03,7.1409]
[1724974724433,13.74682481,140.05,140.02,17.8538]
[1724974724638,1.78539769,140.04,140.02,17.8538]
[1724974726529,1.78539769,140.04,140.02,24.9955]
[1724974727442,13.74682481,140.05,140.02,24.9955]
[1724974727637,15.53213342,140.05,140.02,24.9955]
[1724974728725,1.78531235,140.04,140.02,24.9955]
[1724974729121,15.53216393,140.05,140.02,24.9955]
[1724974729538,1.78533027,140.04,140.02,24.9955]
[1724974730041,15.5321606,140.05,140.02,24.9955]
[1724974730640,1.78533579,140.05,140.02,24.9955]
[1724974730832,1.78525839,140.06,140.02,24.9955]
[1724974731031,1.78525839,140.06,140.02,17.8538]
[1724974731236,1.78525839,140.06,140.03,7.1411]
[1724974732351,1.7851941,140.07,140.04,7.1406]
[1724974732655,1.7851941,140.09,140.05,7.78160834]
[1724974732826,21.7851941,140.09,140.05,7.78160834]
[1724974733448,21.7851941,140.09,140.05,8.56798304]
[1724974734529,62.49468141,140.14,140.04,17.8514]
[1724974734530,8.41801235,140.13,140.04,17.8514]
[1724974734735,13.74682481,140.12,140.05,45.25098]
[1724974734948,21.78449628,140.11,140.05,45.25098]
[1724974735349,1.78449328,140.12,140.07,17.8475]
[1724974735930,1.78449328,140.12,140.08,1.42749705]
[1724974736331,1.78439147,140.13,140.09,7.1381]
[1724974736737,21.78439147,140.13,140.09,7.1381]
[1724974737758,28.92059147,140.13,140.09,7.1381]
[1724974738152,42.66741628,140.13,140.09,7.1381]
[1724974739459,7.1367,140.12,140.07,24.9866]
[1724974739642,1.78463588,140.11,140.07,24.9866]
[1724974740150,1.78463588,140.11,140.08,7.1386]
[1724974740532,1.78463588,140.11,140.07,17.8475]
[1724974741270,1.78463588,140.11,140.07,24.9866]
[1724974742145,8.92193588,140.11,140.07,24.9866]
[1724974742451,8.92139786,140.12,140.07,24.9866]
[1724974744461,20.88412481,140.11,140.07,17.8475]
[1724974744662,1.78472636,140.1,140.07,17.8475]
[1724974748960,1.78472636,140.1,140.04,21.7786]
[1724974748961,13.74682481,140.09,140.04,24.992]
[1724974749142,13.74682481,140.07,140.04,24.992]
[1724974750470,20.88512481,140.09,140.05,7.1402]
[1724974750640,1.78488262,140.08,140.05,7.1402]
[1724974753665,8.92358262,140.08,140.04,17.8516]
[1724974753833,8.92358262,140.08,140.04,24.9923]
[1724974754842,1.78488262,140.08,140.04,24.9923]
[1724974756771,1.78488262,140.08,140.05,7.1401]
[1724974759380,1.78488262,140.08,140.04,24.9922]
[1724974759551,13.74682481,140.07,140.04,24.9922]
[1724974764586,20.88722481,140.05,140.01,17.8554]
[1724974764754,1.78546038,140.04,140.01,17.8554]
[1724974764951,13.74682481,140.05,140.01,24.9976]
[1724974765169,15.53210754,140.05,140.01,24.9976]
[1724974769080,15.53211974,140.05,140.01,24.9976]
[1724974772188,8.92609681,140.04,139.99,7.1429]
[1724974772482,13.74682481,140.03,139.99,7.1429]
[1724974773489,15.53232452,140.03,139.99,7.1429]
[1724974774690,7.1404,140.05,140.01,7.1422]
[1724974774876,1.78550011,140.06,140.03,7.1409]
[1724974775779,1.78550011,140.06,140.02,24.9956]
[1724974776584,8.92445979,140.07,140.02,24.9956]
[1724974776982,7.1393,140.07,140.03,7.1411]
[1724974777155,8.92426179,140.07,140.02,24.9953]
[1724974778873,7.1398,140.06,140.02,24.9953]
[1724974779390,8.92466179,140.07,140.02,24.9953]
[1724974783465,13.74682481,140.06,140.02,17.8539]
[1724974783673,1.78535662,140.05,140.02,17.8539]
[1724974785280,8.92565662,140.05,140.02,17.8539]
[1724974785480,1.78534895,140.04,140.02,17.8539]
[1724974786385,1.78534895,140.04,140.0,7.1427]
[1724974789298,22.67307376,140.04,139.99,25.0009]
[1724974789486,13.74682481,140.02,139.99,17.8577]
[1724974789690,1.78569347,140.01,139.99,17.8577]
[1724974791893,1.78569347,140.01,139.96,25.0059]
[1724974792093,13.74682481,140.0,139.96,25.0059]
[1724974794772,1.78594563,139.99,139.96,25.0059]
[1724974794973,1.78597235,139.99,139.96,25.0059]
[1724974796694,13.74682481,140.0,139.96,25.0059]
[1724974797473,7.1424,140.01,139.96,25.0059]
[1724974797788,8.92828422,140.01,139.96,25.0059]
[1724974798174,8.92828422,140.01,139.97,7.1442]
[1724974798598,1.78588422,140.01,139.98,7.1436]
[1724974799873,20.88872481,140.02,139.98,7.1436]
[1724974800286,7.1419,140.02,139.98,7.1436]
[1724974801002,1.78567501,140.01,139.98,7.1436]
[1724974801677,8.92758444,140.02,139.98,7.1436]
[1724974801971,15.5325094,140.03,139.99,7.143]
[1724974802178,1.78568459,140.03,139.99,7.143]
[1724974802387,21.78568459,140.03,139.99,7.143]
[1724974803603,28.92718459,140.03,139.98,17.8588]
[1724974803973,28.92718459,140.03,139.98,25.0022]
[1724974807079,21.78568459,140.03,139.98,17.8588]
[1724974808302,28.92708459,140.03,139.98,25.0026]
[1724974810200,1.78568459,140.03,139.98,17.8588]
[1724974810405,8.92465537,140.07,140.0,17.8564]
[1724974810619,8.92465537,140.07,140.01,7.1422]
[1724974811604,20.0,140.06,140.01,7.1422]
[1724974812681,33.74682481,140.06,140.01,7.1422]
[1724974814105,40.88662481,140.06,140.01,7.1422]
[1724974818311,1.78516574,140.05,140.01,7.1422]
[1724974818985,40.88662481,140.06,140.01,7.1422]
[1724974819506,8.925569,140.05,140.0,24.9991]
[1724974819885,7.925569,140.05,140.0,24.9991]
[1724974820196,13.74682481,140.04,140.0,24.9991]
[1724974820385,1.78548659,140.03,140.0,24.9991]
[1724974820605,13.74682481,140.02,139.98,7.1437]
[1724974820807,13.74682481,140.0,139.97,17.8601]
[1724974821108,1.78603302,139.99,139.94,17.864]
[1724974822406,1.78603302,139.99,139.95,7.1453]
[1724974825299,1.78601145,139.99,139.95,7.1453]
[1724974825702,8.92941145,139.99,139.95,7.1453]
[1724974825897,1.78601145,139.99,139.95,7.1453]
[1724974827610,13.74682481,139.98,139.93,7.1464]
[1724974827795,13.74682481,139.96,139.93,7.1464]
[1724974827996,1.78643791,139.95,139.93,7.1464]
[1724974828823,13.74682481,139.96,139.93,7.1464]
[1724974829304,54.98729924,140.07,139.92,0.12549]
[1724974829305,17.8164605,140.02,139.92,0.12549]
[1724974829503,21.78586956,140.01,139.97,7.1443]
[1724974829707,1.78586956,140.01,139.98,7.1438]
[1724974830314,1.78586956,140.01,139.97,7.1442]
[1724974831027,24.95774732,140.02,139.98,7.1437]
[1724974831493,1.78565858,140.05,139.97,13.74682481]
[1724974831699,1.78565858,140.05,140.01,7.1423]
[1724974832005,24.28977209,140.06,140.01,7.1423]
[1724974837820,7.1414,140.03,139.99,17.8576]
[1724974837997,8.92761102,140.02,139.96,17.8617]
[1724974838197,1.7858464,140.01,139.97,7.1442]
[1724974840306,1.7858464,140.01,139.98,7.1438]
[1724974841918,8.92766877,140.02,139.98,7.1438]
[1724974842219,7.1409,140.04,139.99,7.1432]
[1724974842400,1.78553458,140.03,139.99,7.1432]
[1724974842596,1.78553415,140.04,140.0,7.1427]
[1724974843008,8.925916,140.05,140.01,7.1422]
[1724974843415,1.7853173,140.04,140.01,7.1422]
[1724974843631,7.1418,140.02,139.98,17.859]
[1724974843913,1.78582355,140.01,139.98,17.859]
[1724974844424,1.78582355,140.01,139.98,25.0028]
[1724974846120,1.78582355,140.01,139.98,17.859]
[1724974846338,15.3646,140.06,139.99,8.57160312]
[1724974846542,7.1408,140.04,139.99,8.57160312]
[1724974846720,8.92624898,140.04,139.99,8.57160312]
[1724974847650,7.1408,140.04,139.99,8.57160312]
[1724974848240,17.15005799,140.06,140.0,17.8564]
[1724974848437,17.15005799,140.06,140.01,1.42821768]
[1724974848644,17.15005799,140.06,140.0,17.8564]
[1724974849344,24.29015799,140.06,140.01,7.1422]
[1724974856353,7.1408,140.05,140.0,17.8564]
[1724974856563,8.92644644,140.04,140.0,17.8564]
[1724974856745,15.3646,140.06,140.0,17.8564]
[1724974857055,8.92564739,140.05,140.0,24.9988]
[1724974859158,1.78534739,140.05,140.02,17.854]
[1724974859648,1.78534739,140.05,140.02,24.9957]
[1724974859845,1.78534739,140.05,140.02,17.854]
[1724974862366,24.28984147,140.06,140.02,17.854]
[1724974862550,1.78519759,140.07,140.02,17.854]
[1724974862749,1.78519759,140.07,140.03,7.1412]
[1724974863248,1.78498133,140.09,140.02,17.854]
[1724974863460,1.78484269,140.1,140.04,31.59782481]
[1724974863767,7.1368,140.12,140.05,45.12549]
[1724974864079,23.2765,140.13,140.06,17.8485]
[1724974864237,17.9245779,140.13,140.06,17.8485]
[1724974864442,16.1402,140.13,140.07,46.55021887]
[1724974864645,1.78422044,140.13,140.07,46.55021887]
[1724974864968,1.78422044,140.13,140.07,45.12549]
[1724974865268,1.78422044,140.13,140.09,7.1381]
[1724974866144,1.78425681,140.14,140.08,17.846]
[1724974866348,1.7840195,140.19,140.12,13.74682481]
[1724974866645,1.78353025,140.2,140.13,0.25098]
[1724974866850,1.78353025,140.2,140.13,45.25098]
[1724974867046,6.0137,140.22,140.15,17.8376]
[1724974867245,1.78315137,140.23,140.16,45.12549]
[1724974868172,7.1316,140.23,140.17,7.1341]
[1724974868468,7.1333,140.19,140.11,17.8418]
[1724974868648,1.78370206,140.18,140.12,45.12549]
[1724974869242,1.78370206,140.18,140.14,7.1356]
[1724974869466,8.91699576,140.19,140.14,7.1356]
[1724974869970,8.91747194,140.18,140.12,52.26169]
[1724974870148,8.91747194,140.18,140.13,7.136]
[1724974872598,8.91685971,140.19,140.14,7.1356]
[1724974874080,34.27522125,140.16,140.11,17.8418]
[1724974874270,1.78405731,140.15,140.11,17.8418]
[1724974875140,1.78405731,140.15,140.11,24.9789]
[1724974876076,8.91925731,140.15,140.11,17.8418]
[1724974876246,1.78405968,140.14,140.11,17.8418]
[1724974876968,7.1347,140.16,140.11,24.979]
[1724974881574,7.1359,140.14,140.09,7.1378]
[1724974881874,70.88662125,140.18,140.08,24.3358]
[1724974881875,1.78406012,140.17,140.11,17.8428]
[1724974883261,7.1348,140.16,140.11,24.9799]
[1724974887154,8.91915889,140.15,140.11,24.9799]
[1724974891468,8.91915889,140.15,140.11,17.8428]
[1724974893978,7.1357,140.14,140.11,17.8428]
[1724974894178,7.1357,140.14,140.09,7.1382]
[1724974895969,7.1357,140.14,140.08,17.97179]
[1724974895970,7.1357,140.14,140.1,7.1376]
[1724974896178,8.91915889,140.15,140.1,7.1376]
[1724974902776,7.1359,140.14,140.1,7.1376]
[1724974905793,8.91915889,140.15,140.1,7.1376]
[1724974906185,7.1353,140.15,140.11,7.1371]
[1724974909387,8.91888004,140.16,140.11,7.1371]
[1724974910777,1.78397694,140.17,140.12,1.42718155]
[1724974910993,16.6114,140.18,140.14,7.1356]
[1724974911371,13.72613582,140.16,140.12,24.9776]
[1724974911772,7.1343,140.17,140.13,7.136]
[1724974912198,39.25503242,140.18,140.13,7.136]
[1724974914493,16.6114,140.18,140.15,7.1347]
[1724974914674,20.85883582,140.2,140.15,7.1347]
[1724974914874,22.64221659,140.2,140.15,7.1347]
[1724974915294,16.3719,140.21,140.17,7.1341]
[1724974915475,18.1551157,140.21,140.17,7.1341]
[1724974915682,18.1551157,140.21,140.17,8.43309046]
[1724974915887,6.4265,140.22,140.16,17.96149]
[1724974916095,1.78299719,140.23,140.19,7.1327]
[1724974916698,1.78295975,140.23,140.19,7.1327]
[1724974917277,21.78295975,140.23,140.19,7.1327]
[1724974919609,28.91415975,140.23,140.19,7.1327]
[1724974920285,21.78295975,140.23,140.19,7.1327]
[1724974920595,1.7829931,140.24,140.2,7.1325]
[1724974920790,28.9138931,140.24,140.18,17.95869]
[1724974922101,13.72613582,140.23,140.18,17.95869]
[1724974922307,13.72613582,140.23,140.19,7.133]
[1724974922895,1.78298533,140.22,140.19,7.133]
[1724974923110,15.50912449,140.23,140.19,7.133]
[1724974925095,1.78298867,140.23,140.19,7.133]
[1724974928417,1.78298867,140.23,140.2,17.8308]
[1724974928717,1.78298264,140.24,140.2,24.9633]
[1724974928887,8.91358264,140.24,140.2,24.9633]
[1724974929092,1.78298202,140.23,140.2,24.9633]
[1724974931113,37.25323582,140.21,140.17,17.8351]
[1724974931319,13.72613582,140.19,140.17,17.8351]
[1724974931696,13.72613582,140.19,140.16,7.1346]
[1724974931991,15.50955382,140.2,140.17,7.134]
[1724974933892,15.50955382,140.2,140.16,7.1346]
[1724974935726,13.72613582,140.18,140.14,24.9738]
[1724974935931,77.51164328,140.21,140.12,7.1366]
[1724974935932,13.72613582,140.16,140.12,7.1366]
[1724974936222,13.72613582,140.16,140.11,17.8427]
[1724974936223,13.72613582,140.16,140.13,7.1361]
[1724974939025,8.91902352,140.15,140.11,17.8427]
[1724974939201,15.51027432,140.14,140.11,17.8427]
[1724974939525,22.64597432,140.14,140.1,7.1376]
[1724974939914,15.51027432,140.14,140.1,7.1376]
[1724974941429,28.762,140.16,140.11,7.1371]
[1724974941811,30.54590895,140.16,140.11,7.1371]
[1724974944433,42.48813582,140.16,140.11,7.1371]
[1724974945231,1.78391269,140.15,140.11,7.1371]
[1724974946125,21.6272,140.16,140.12,7.1366]
[1724974946321,37.13724867,140.16,140.12,7.1366]
[1724974950935,23.41111285,140.16,140.12,7.1366]
[1724974951108,37.13724867,140.16,140.12,7.1366]
[1724974951835,21.6272,140.16,140.13,8.56323119]
[1724974952038,15.4146,140.16,140.13,8.56323119]
[1724974952226,36.99789145,140.19,140.14,17.8383]
[1724974953528,44.13109145,140.19,140.14,24.9739]
[1724974954211,44.13109145,140.19,140.15,7.1351]
[1724974955633,30.40495563,140.19,140.15,7.1351]
[1724974955934,13.72613582,140.18,140.15,7.1351]
[1724974957638,13.72613582,140.18,140.14,24.9739]
[1724974958144,13.72613582,140.18,140.11,17.843]
[1724974958337,20.85993582,140.18,140.14,7.1357]
[1724974959539,13.72613582,140.16,140.13,7.1362]
[1724974961416,8.91909571,140.15,140.1,7.1376]
[1724974961631,13.72613582,140.12,140.1,7.1376]
[1724974966039,1.78425868,140.11,140.08,17.8462]
[1724974967322,13.72613582,140.12,140.08,24.9849]
[1724974968354,20.86283582,140.12,140.08,17.8462]
[1724974969240,1.7844336,140.11,140.08,24.9849]
[1724974970048,15.5105579,140.12,140.08,24.9849]
[1724974977857,13.72613582,140.12,140.09,7.1382]
[1724974980861,13.72613582,140.12,140.1,7.1372]
[1724974981332,13.72613582,140.12,140.09,7.1381]
[1724974983062,35.75353582,140.14,140.1,7.1376]
[1724974983237,23.81160866,140.14,140.1,7.1376]
[1724974987053,15.562,140.14,140.1,7.1376]
[1724974987242,29.28813582,140.14,140.11,7.1372]
[1724974987444,13.72613582,140.14,140.11,8.56445066]
[1724974987843,13.72613582,140.14,140.11,7.1372]
[1724974988756,22.64499914,140.16,140.11,7.1372]
[1724974988941,22.64499914,140.16,140.12,7.1366]
[1724974989348,15.51019914,140.16,140.12,7.1366]
[1724974989565,6.3418,140.18,140.13,1.42624477]
[1724974989770,1.78395172,140.19,140.15,7.1347]
[1724974989966,15.51008754,140.19,140.15,7.1347]
[1724974990747,15.51008754,140.19,140.12,0.12549]
[1724974990748,1.78362159,140.2,140.16,7.1345]
[1724974991770,13.72613582,140.19,140.16,7.1345]
[1724974993175,1.78347574,140.18,140.16,7.1345]
[1724974994474,1.78347574,140.18,140.15,7.1351]
[1724974996379,1.78347574,140.18,140.14,17.8387]
[1724974996589,1.78347574,140.18,140.14,24.9742]
[1724974997786,7.1333,140.19,140.15,7.1351]
[1724974999493,1.78355936,140.18,140.15,7.1351]
[1724975000769,1.78361401,140.19,140.15,7.1351]
[1724975001792,22.64244295,140.2,140.16,8.5614857]
[1724975003560,1.78360713,140.2,140.16,8.5614857]
[1724975003765,1.78338188,140.2,140.16,19.2626857]
[1724975003992,1.78338188,140.2,140.16,17.8358]
[1724975005476,1.78338188,140.2,140.17,7.134]
[1724975006198,30.96148322,140.21,140.17,8.56067792]
[1724975006488,30.96148322,140.21,140.17,7.134]
[1724975008886,7.1316,140.22,140.18,1.42664428]
[1724975009088,8.91477325,140.22,140.18,1.42664428]
[1724975009501,8.91477325,140.22,140.17,8.56056662]
[1724975009901,8.91477325,140.22,140.18,1.42659525]
[1724975010072,8.91477325,140.22,140.17,8.56059415]
[1724975010272,8.91477325,140.22,140.17,8.56059441]
[1724975010596,8.91477325,140.22,140.17,7.134]
[1724975017299,13.72613582,140.21,140.17,7.134]
[1724975017597,1.78325682,140.2,140.17,7.134]
[1724975018471,15.50938769,140.21,140.17,7.134]
[1724975023792,1.78324824,140.2,140.17,7.134]
[1724975024106,1.78324824,140.2,140.16,24.9703]
[1724975029620,13.72613582,140.19,140.16,17.8358]
[1724975029789,1.78356584,140.18,140.16,17.8358]
[1724975032215,13.72613582,140.19,140.16,17.8358]
[1724975032387,1.78352851,140.19,140.16,17.8358]
[1724975039922,1.78352498,140.2,140.16,17.8358]
[1724975040238,1.78332231,140.21,140.16,17.8358]
[1724975041351,1.78332231,140.21,140.17,7.134]
[1724975042752,1.78332231,140.21,140.16,17.8358]
[1724975042923,13.72613582,140.22,140.16,17.8358]
[1724975043119,8.91562274,140.21,140.16,24.97]
[1724975043316,1.78332274,140.2,140.16,24.97]
[1724975043644,1.78332274,140.2,140.17,7.134]
[1724975044216,1.7833228,140.21,140.17,7.134]
[1724975045029,1.7833228,140.21,140.18,7.1336]
[1724975045217,8.91502206,140.22,140.18,7.1336]
[1724975045411,8.91502206,140.22,140.18,8.56011012]
[1724975046113,1.78332206,140.22,140.18,8.56011012]
[1724975046315,1.78309322,140.24,140.18,17.8333]
[1724975046621,13.72613582,140.25,140.18,17.8333]
[1724975047535,20.85723582,140.23,140.18,24.9668]
[1724975047738,1.78315592,140.22,140.18,24.9668]
[1724975047929,13.72613582,140.19,140.15,24.9723]
[1724975048116,1.78354085,140.18,140.15,24.9723]
[1724975050253,1.78354085,140.18,140.16,7.1346]
[1724975053169,1.78354085,140.18,140.15,24.9726]
[1724975053367,1.78354085,140.18,140.14,7.1356]
[1724975058859,15.1836,140.23,140.13,7.1362]
[1724975058860,15.50977718,140.17,140.13,7.1362]
[1724975060467,22.64397718,140.17,140.13,7.1362]
[1724975062163,22.64397718,140.17,140.12,24.9776]
[1724975065273,22.64397718,140.17,140.13,7.1361]
[1724975065274,15.50977718,140.17,140.13,7.1361]
[1724975066046,15.50977718,140.17,140.13,8.56311677]
[1724975067266,15.50977718,140.17,140.13,7.1361]
[1724975068963,22.64397718,140.17,140.12,24.9777]
[1724975073459,8.91784136,140.17,140.13,8.5631808]
[1724975073667,1.78364136,140.17,140.13,8.5631808]
[1724975073977,37.94838894,140.18,140.14,7.1356]
[1724975074574,29.03083582,140.18,140.14,7.1356]
[1724975074768,30.81443134,140.18,140.14,7.1356]
[1724975075073,30.81443134,140.18,140.1,16.0372]
[1724975075074,1.78359607,140.21,140.13,13.72613582]
[1724975075317,16.5437,140.22,140.16,17.8359]
[1724975075579,16.5437,140.22,140.17,1.42654065]
[1724975075778,18.32688024,140.22,140.18,7.1335]
[1724975078461,25.45848024,140.22,140.18,7.1335]
[1724975080472,20.85833582,140.21,140.16,24.9704]
[1724975080681,1.78323443,140.2,140.16,24.9704]
[1724975081872,20.85833582,140.21,140.16,24.9704]
[1724975082379,13.72613582,140.21,140.17,7.1337]
[1724975084190,1.7832701,140.2,140.17,7.1337]
[1724975084992,20.85833582,140.21,140.17,7.1337]
[1724975085395,1.78327091,140.2,140.17,7.1337]
[1724975085596,20.85833582,140.21,140.17,7.1337]
[1724975088795,16.5437,140.22,140.16,17.8359]
[1724975089105,23.6757,140.22,140.17,7.134]
[1724975089398,7.1322,140.21,140.17,7.134]
[1724975090903,8.91547306,140.21,140.17,7.134]